fUST/lending_fUST_20241204
["ID","MTS","AMOUNT","RATE_DAILY","PERIOD"]
[344143064,1733298539606,-500.0,0.00024999,2]
[344143065,1733298539630,-160.66132354,0.00024999,2]
[344143066,1733298539653,-500.0,0.00024999,2]
[344143067,1733298539675,-500.0,0.00024999,2]
[344143068,1733298539697,-500.0,0.00024999,2]
[344143069,1733298539719,-500.0,0.00024999,2]
[344143070,1733298539741,-500.0,0.00024999,2]
[344143071,1733298539764,-500.0,0.00024999,2]
[344143072,1733298539786,-497.41180058,0.00024999,2]
[344143073,1733298539809,-500.0,0.00024999,2]
[344143074,1733298539833,-500.0,0.00024999,2]
[344143075,1733298539856,-500.0,0.00024999,2]
[344143076,1733298539879,-500.0,0.00024999,2]
[344143077,1733298540025,-500.0,0.00024999,2]
[344143078,1733298540050,-500.0,0.00024999,2]
[344143079,1733298540073,-500.0,0.00024999,2]
[344143080,1733298540102,-500.0,0.00024999,2]
[344143081,1733298540125,-500.0,0.00024999,2]
[344143082,1733298540147,-200.0,0.00024999,2]
[344143083,1733298540170,-500.0,0.00024999,2]
[344143084,1733298540196,-500.0,0.00024999,2]
[344143085,1733298540223,-500.0,0.00024999,2]
[344143086,1733298540246,-500.0,0.00024999,2]
[344143087,1733298540269,-500.0,0.00024999,2]
[344143088,1733298540290,-291.76738913,0.00025,2]
[344143089,1733298540312,-56857.0,0.00025,2]
[344143090,1733298540334,-183.0983448,0.00025436,2]
[344143091,1733298540355,-1040.89141705,0.00025673,2]
[344143092,1733298540707,300.0,0.00024998,2]
[344143093,1733298555099,-180.665,0.000261,12]
[344143094,1733298555121,-184.482835,0.00026877,2]
[344143095,1733298560953,-500.0,0.00027139,2]
[344143096,1733298560975,-372.21335672,0.00027139,2]
[344143097,1733298560997,-213.61984095,0.000272,2]
[344143098,1733298561023,-501.44575135,0.0002725,2]
[344143099,1733298561045,-625.35692921,0.0002725,2]
[344143100,1733298561067,-503.38916692,0.0002725,2]
[344143101,1733298561090,-300.0,0.00027491,2]
[344143102,1733298561112,-420.0,0.00027498,2]
[344143103,1733298561135,-1000.0,0.00027687,5]
[344143176,1733298632521,-155.0637329,0.00028119,2]
[344143177,1733298632532,-161.01074424,0.00028436,2]
[344143178,1733298632542,-235.78956565,0.00028473,5]
[344143179,1733298632553,-264.21043435,0.00028473,5]
[344143180,1733298632563,-387.5028327,0.00028489,2]
[344143181,1733298632572,-780.66856284,0.00028489,2]
[344143183,1733298632582,-300.0,0.00028498,2]
[344143185,1733298632591,-300.0,0.00028498,2]
[344143187,1733298632601,-261.9132644,0.00028499,2]
[344143190,1733298632610,-238.67988384,0.00028499,2]
[344143193,1733298632620,-223.56350245,0.00028499,2]
[344143195,1733298632630,-500.0,0.00028499,2]
[344143197,1733298632639,-465.23597886,0.00028499,2]
[344143199,1733298632648,-440.30652782,0.00028499,7]
[344143201,1733298632658,-335.31923615,0.00028499,2]
[344143203,1733298632668,-4171.47144325,0.000285,2]
[344143206,1733298632679,-10189.82482836,0.000285,2]
[344143208,1733298632689,-10260.64140407,0.000285,5]
[344143210,1733298632700,-42000.089831,0.000285,5]
[344143245,1733298638328,-39374.69268872,0.000285,5]
[344143246,1733298638376,-4099002.89607621,0.000285,5]
[344143248,1733298638387,-3934.45615283,0.00028589,2]
[344143250,1733298638397,-1500.0,0.00028689,5]
[344143252,1733298638406,-161.01074422,0.00028735,2]
[344143253,1733298638416,-184.482835,0.00028866,2]
[344143254,1733298638425,-780.66856278,0.00028866,2]
[344143255,1733298638434,-161.01074422,0.00029035,2]
[344143256,1733298638444,-780.66856278,0.00029244,2]
[344143257,1733298638453,-161.01074422,0.00029334,2]
[344143258,1733298638464,-161.01074422,0.00029633,2]
[344143259,1733298638477,-9806.02819728,0.00029714,2]
[344143260,1733298638487,-501.4320471,0.000298,5]
[344143261,1733298638497,-161.01074422,0.00029933,2]
[344143262,1733298638509,-2000.0,0.00029986,5]
[344143263,1733298638519,-2541.92891076,0.0003,15]
[344143264,1733298638532,-28677.53278885,0.0003,2]
[344143265,1733298638543,-370.326,0.0003,3]
[344143266,1733298638554,-151.0,0.0003,120]
[344143267,1733298638563,-151.0,0.0003,120]
[344143268,1733298638573,-6191.0,0.0003,20]
[344143269,1733298638583,-6190.0,0.0003,20]
[344143270,1733298638592,-6190.0,0.0003,20]
[344143271,1733298638602,-6190.0,0.0003,20]
[344143272,1733298638613,-6190.0,0.0003,20]
[344143273,1733298638623,-6190.0,0.0003,20]
[344143274,1733298638632,-168.999,0.0003,2]
[344143275,1733298638642,-219.0,0.0003,2]
[344143276,1733298638652,-150.0,0.000301,2]
[344143277,1733298638663,-500.0,0.00030136,7]
[344143278,1733298638673,-500.0,0.00030136,7]
[344143279,1733298638683,-500.0,0.00030136,7]
[344143280,1733298638693,-247.4,0.00030136,7]
[344143281,1733298638702,-500.0,0.00030136,7]
[344143282,1733298638712,-500.0,0.00030136,7]
[344143283,1733298638722,-500.0,0.00030136,7]
[344143284,1733298638733,-500.0,0.00030136,7]
[344143285,1733298638744,-500.0,0.00030136,7]
[344143286,1733298638756,-513.72155373,0.00030136,7]
[344143287,1733298638765,-500.0,0.00030136,7]
[344143288,1733298638775,-500.0,0.00030136,7]
[344143289,1733298638788,-500.0,0.00030136,7]
[344143290,1733298638798,-500.0,0.00030136,7]
[344143291,1733298638807,-500.0,0.00030136,7]
[344143292,1733298638817,-500.0,0.00030136,7]
[344143293,1733298638827,-500.0,0.00030136,7]
[344143294,1733298638837,-500.0,0.00030136,7]
[344143295,1733298638846,-500.0,0.00030136,7]
[344143296,1733298638856,-426.97413891,0.00030136,7]
[344143297,1733298638866,-500.0,0.00030136,7]
[344143298,1733298638875,-500.0,0.00030136,7]
[344143299,1733298638893,-500.0,0.00030136,7]
[344143300,1733298638905,-500.0,0.00030136,7]
[344143301,1733298638914,-514.09419807,0.00030136,7]
[344143302,1733298638925,-500.0,0.00030136,7]
[344143303,1733298638936,-500.0,0.00030136,7]
[344143304,1733298638945,-500.0,0.00030136,7]
[344143305,1733298638959,-500.0,0.00030136,7]
[344143306,1733298638969,-521.47668039,0.00030136,7]
[344143307,1733298638979,-500.0,0.00030136,7]
[344143308,1733298638990,-500.0,0.00030136,7]
[344143309,1733298639001,-500.0,0.00030136,7]
[344143310,1733298639011,-500.0,0.00030136,7]
[344143311,1733298639021,-500.0,0.00030136,7]
[344143312,1733298639033,-500.0,0.00030136,7]
[344143313,1733298639043,-500.0,0.00030136,7]
[344143314,1733298639052,-500.0,0.00030136,7]
[344143315,1733298639062,-500.0,0.00030136,7]
[344143316,1733298639072,-500.0,0.00030136,7]
[344143317,1733298639081,-500.0,0.00030136,7]
[344143318,1733298639091,-500.0,0.00030136,7]
[344143319,1733298639101,-500.0,0.00030136,7]
[344143320,1733298639111,-500.0,0.00030136,7]
[344143321,1733298639122,-500.0,0.00030136,7]
[344143322,1733298639131,-500.0,0.00030136,7]
[344143323,1733298639142,-500.0,0.00030136,7]
[344143324,1733298639151,-500.0,0.00030136,7]
[344143325,1733298639161,-500.0,0.00030136,7]
[344143326,1733298639170,-500.0,0.00030136,7]
[344143327,1733298639180,-500.0,0.00030136,7]
[344143328,1733298639189,-500.0,0.00030136,7]
[344143329,1733298639199,-503.17925164,0.00030136,7]
[344143330,1733298639208,-500.0,0.00030136,7]
[344143331,1733298639218,-500.0,0.00030136,7]
[344143332,1733298639228,-500.0,0.00030136,7]
[344143333,1733298639238,-500.0,0.00030136,7]
[344143334,1733298639247,-500.0,0.00030136,7]
[344143335,1733298639257,-28.49001956,0.00030136,7]
[344143336,1733298639371,-471.50998044,0.00030136,7]
[344143337,1733298639382,-500.0,0.00030136,7]
[344143338,1733298639392,-500.0,0.00030136,7]
[344143339,1733298639402,-500.0,0.00030136,7]
[344143340,1733298639411,-500.0,0.00030136,7]
[344143341,1733298639420,-500.0,0.00030136,7]
[344143342,1733298639430,-500.0,0.00030136,7]
[344143343,1733298639439,-500.0,0.00030136,7]
[344143344,1733298639448,-500.0,0.00030136,7]
[344143345,1733298639458,-521.11925499,0.00030136,7]
[344143346,1733298639467,-500.0,0.00030136,7]
[344143347,1733298639477,-504.55182923,0.00030136,7]
[344143348,1733298639487,-500.0,0.00030136,7]
[344143349,1733298639496,-500.0,0.00030136,7]
[344143350,1733298639505,-503.15737149,0.00030136,7]
[344143351,1733298639514,-502.30995841,0.00030136,7]
[344143352,1733298639524,-188.83748195,0.00030136,7]
[344143366,1733298640246,-259.7475372,0.00030136,7]
[344143380,1733298643445,-500.0,0.00028499,2]
[344143381,1733298643456,-500.0,0.00028499,2]
[344143382,1733298643466,-500.0,0.00028499,2]
[344143383,1733298643476,-500.0,0.00028499,2]
[344143384,1733298643486,-500.0,0.00028499,2]
[344143385,1733298643496,-286.06613235,0.00028499,2]
[344143386,1733298643507,-500.0,0.00028499,2]
[344143387,1733298643517,-51.41498085,0.00030136,7]
[344143388,1733298643527,-626.42692228,0.00030136,7]
[344143389,1733298643541,-500.0,0.00030136,7]
[344143390,1733298643553,-500.0,0.00030136,7]
[344143391,1733298643562,-417.04780246,0.00030136,7]
[344143392,1733298643572,-500.0,0.00030136,7]
[344143393,1733298643582,-500.0,0.00030136,7]
[344143394,1733298643592,-500.0,0.00030136,7]
[344143395,1733298643601,-500.0,0.00030136,7]
[344143396,1733298643612,-580.33744853,0.00030136,7]
[344143397,1733298643622,-504.81257293,0.00030136,7]
[344143398,1733298643631,-529.7,0.00030136,7]
[344143399,1733298643641,-500.0,0.00030136,7]
[344143400,1733298643651,-500.0,0.00030136,7]
[344143401,1733298643660,-500.0,0.00030136,7]
[344143402,1733298643669,-500.0,0.00030136,7]
[344143403,1733298643679,-500.0,0.00030136,7]
[344143404,1733298643688,-500.0,0.00030136,7]
[344143405,1733298643697,-412.34486148,0.00030136,7]
[344143406,1733298643707,-500.0,0.00030136,7]
[344143407,1733298643716,-500.0,0.00030136,7]
[344143408,1733298643726,-500.0,0.00030136,7]
[344143409,1733298643735,-500.0,0.00030136,7]
[344143410,1733298643745,-500.0,0.00030136,7]
[344143411,1733298643754,-500.0,0.00030136,7]
[344143412,1733298643763,-156.20020557,0.00030136,7]
[344143413,1733298643772,-500.0,0.00030136,7]
[344143414,1733298643782,-500.0,0.00030136,7]
[344143415,1733298643795,-500.0,0.00030136,7]
[344143416,1733298643805,-500.0,0.00030136,7]
[344143417,1733298643815,-500.0,0.00030136,7]
[344143418,1733298643824,-500.0,0.00030136,7]
[344143419,1733298643833,-500.0,0.00030136,7]
[344143420,1733298643842,-500.0,0.00030136,7]
[344143421,1733298643851,-500.0,0.00030136,7]
[344143422,1733298643861,-500.0,0.00030136,7]
[344143423,1733298643870,-500.0,0.00030136,7]
[344143424,1733298643879,-500.0,0.00030136,7]
[344143425,1733298643889,-164.28532227,0.00030136,7]
[344143426,1733298643898,-500.0,0.00030136,7]
[344143427,1733298643907,-500.0,0.00030136,7]
[344143428,1733298643916,-500.0,0.00030136,7]
[344143429,1733298643925,-500.0,0.00030136,7]
[344143430,1733298643935,-500.0,0.00030136,7]
[344143431,1733298643945,-500.0,0.00030136,7]
[344143432,1733298643957,-500.0,0.00030136,7]
[344143433,1733298643966,-500.0,0.00030136,7]
[344143434,1733298643977,-500.0,0.00030136,7]
[344143435,1733298643986,-500.0,0.00030136,7]
[344143436,1733298643996,-506.78247308,0.00030136,7]
[344143437,1733298644007,-500.0,0.00030136,7]
[344143438,1733298644016,-500.0,0.00030136,7]
[344143439,1733298644028,-500.0,0.00030136,7]
[344143440,1733298644039,-500.0,0.00030136,7]
[344143441,1733298644049,-500.0,0.00030136,7]
[344143442,1733298644058,-500.0,0.00030136,7]
[344143443,1733298644067,-500.0,0.00030136,7]
[344143444,1733298644077,-500.0,0.00030136,7]
[344143445,1733298644086,-500.0,0.00030136,7]
[344143446,1733298644095,-500.0,0.00030136,7]
[344143447,1733298644105,-500.0,0.00030136,7]
[344143448,1733298644114,-378.37894124,0.00030136,7]
[344143449,1733298644124,-522.01418146,0.00030136,7]
[344143450,1733298644134,-500.0,0.00030136,7]
[344143451,1733298644144,-500.0,0.00030136,7]
[344143452,1733298644153,-500.0,0.00030136,7]
[344143453,1733298644164,-500.0,0.00030136,7]
[344143454,1733298644173,-500.0,0.00030136,7]
[344143455,1733298644182,-500.0,0.00030136,7]
[344143456,1733298644192,-500.0,0.00030136,7]
[344143457,1733298644201,-163.92236753,0.00030136,7]
[344143458,1733298644210,-500.0,0.00030136,7]
[344143459,1733298644219,-500.0,0.00030136,7]
[344143460,1733298644228,-500.0,0.00030136,7]
[344143461,1733298644238,-500.0,0.00030136,7]
[344143462,1733298644247,-500.0,0.00030136,7]
[344143463,1733298644256,-507.15911365,0.00030136,7]
[344143464,1733298644265,-500.0,0.00030136,7]
[344143465,1733298644275,-502.48462643,0.00030136,7]
[344143466,1733298644285,-500.0,0.00030136,7]
[344143467,1733298644294,-355.46704789,0.00030136,7]
[344143468,1733298644453,-30.90212701,0.00030136,7]
[344143469,1733298644489,-115.38420757,0.00030136,7]
[344143470,1733298644498,-500.0,0.00030136,7]
[344143471,1733298644507,-500.0,0.00030136,7]
[344143472,1733298644516,-500.0,0.00030136,7]
[344143473,1733298644526,-505.16514615,0.00030136,7]
[344143474,1733298644536,-500.0,0.00030136,7]
[344143475,1733298644546,-507.65611073,0.00030136,7]
[344143476,1733298644555,-509.85985453,0.00030136,7]
[344143477,1733298644564,-500.0,0.00030136,2]
[344143478,1733298644574,-500.0,0.00030136,7]
[344143479,1733298644583,-500.0,0.00030136,7]
[344143480,1733298644592,-500.0,0.00030136,7]
[344143481,1733298644602,-500.0,0.00030136,7]
[344143482,1733298644611,-500.0,0.00030136,7]
[344143483,1733298644620,-500.0,0.00030136,7]
[344143484,1733298644629,-513.04353009,0.00030136,7]
[344143485,1733298644639,-500.0,0.00030155,5]
[344143486,1733298644648,-500.59957889,0.00030194,5]
[344143487,1733298644658,-507.41686953,0.00030194,5]
[344143488,1733298644667,-156.6288,0.00030197,2]
[344143489,1733298644677,-169.182907,0.00030197,2]
[344143490,1733298644686,-500.0,0.00030199,7]
[344143491,1733298644696,-252.98663328,0.00030199,7]
[344143492,1733298644705,-500.0,0.00030199,7]
[344143493,1733298644714,-509.439898,0.000302,32]
[344143494,1733298644723,-161.01074422,0.00030232,2]
[344143495,1733298644732,-150.0,0.00030259,2]
[344143496,1733298644743,-532.0,0.00030259,2]
[344143497,1733298644752,-2375.0,0.00030259,2]
[344143498,1733298644761,-2172.0,0.00030259,2]
[344143499,1733298644771,-1465.97,0.000303,2]
[344143500,1733298644780,-156.33,0.000303,31]
[344143501,1733298644791,-156.33,0.000303,31]
[344143502,1733298644801,-156.33,0.000303,31]
[344143503,1733298644810,-1963.109826,0.00030318,2]
[344143504,1733298644820,-150.0,0.00030375,2]
[344143505,1733298644829,-161.01074422,0.00030531,2]
[344143506,1733298644838,-500.0,0.00030683,7]
[344143507,1733298644847,-156.6288,0.00030684,2]
[344143508,1733298644856,-1145.29744679,0.00030684,2]
[344143517,1733298646393,-780.66856278,0.00029621,2]
[344143518,1733298646403,-817.81237921,0.00030684,2]
[344143519,1733298646413,-169.182907,0.00030684,2]
[344143520,1733298646422,-1000.0,0.00030703,5]
[344143521,1733298646432,-128.28029387,0.00030747,7]
[344143522,1733298646566,-43.32233933,0.00030747,7]
[344143523,1733298647711,-328.3973668,0.00030747,7]
[344143524,1733298647721,-500.0,0.00030747,7]
[344143525,1733298647731,-420.0,0.00030762,2]
[344143526,1733298647741,-161.01074422,0.00030831,2]
[344143527,1733298647753,-500.0,0.00030849,7]
[344143528,1733298647764,-184.482835,0.00030855,2]
[344143529,1733298647775,-500.0,0.00030998,7]
[344143530,1733298647787,-2346.54173759,0.00031,7]
[344143531,1733298647800,-11290.24986105,0.00031,10]
[344143532,1733298647811,-500.0,0.00031006,7]
[344143533,1733298647823,-4942.31347286,0.00031007,7]
[344143534,1733298647835,-500.0,0.00031114,7]
[344143535,1733298647846,-500.0,0.00031114,7]
[344143536,1733298647858,-500.0,0.00031127,7]
[344143537,1733298647869,-489.40692818,0.00031127,7]
[344143538,1733298647881,-6666.0,0.00031128,2]
[344143539,1733298647894,-500.0,0.00031129,7]
[344143540,1733298647905,-500.0,0.00031129,7]
[344143541,1733298647917,-500.0,0.00031129,7]
[344143542,1733298647929,-500.0,0.00031129,7]
[344143543,1733298647941,-500.0,0.0003113,7]
[344143544,1733298647954,-500.0,0.0003113,7]
[344143545,1733298647965,-161.01074422,0.0003113,2]
[344143546,1733298647976,-500.0,0.00031131,7]
[344143547,1733298647986,-500.0,0.00031131,7]
[344143548,1733298647998,-517.03419902,0.00031131,7]
[344143549,1733298648008,-500.0,0.00031132,7]
[344143550,1733298648018,-500.0,0.00031132,7]
[344143551,1733298648030,-500.0,0.00031132,7]
[344143552,1733298648041,-235.96103683,0.00031132,7]
[344143553,1733298648054,-500.0,0.00031132,7]
[344143554,1733298648066,-500.0,0.00031189,7]
[344143555,1733298648078,-500.0,0.00031189,7]
[344143556,1733298648089,-500.0,0.00031189,7]
[344143557,1733298648101,-500.0,0.00031189,7]
[344143558,1733298648111,-468.42586109,0.00031189,7]
[344143559,1733298648122,-500.0,0.00031189,7]
[344143560,1733298648133,-354.19808667,0.00031189,7]
[344143561,1733298648144,-500.0,0.00031189,7]
[344143562,1733298648154,-500.0,0.00031189,7]
[344143563,1733298648166,-500.0,0.00031189,7]
[344143564,1733298648177,-500.0,0.00031189,7]
[344143565,1733298648188,-500.0,0.00031189,7]
[344143566,1733298648199,-500.0,0.00031189,7]
[344143567,1733298648209,-500.0,0.00031189,7]
[344143568,1733298648220,-500.0,0.00031189,7]
[344143569,1733298648230,-513.40531842,0.00031189,7]
[344143570,1733298648242,-500.0,0.00031189,7]
[344143571,1733298648253,-500.0,0.00031189,7]
[344143572,1733298648263,-500.0,0.00031189,7]
[344143573,1733298648274,-500.0,0.00031189,7]
[344143574,1733298648285,-500.0,0.00031189,7]
[344143575,1733298648297,-500.0,0.00031189,7]
[344143576,1733298648308,-500.0,0.00031189,7]
[344143577,1733298648319,-500.0,0.00031189,7]
[344143578,1733298648329,-243.7998,0.00031189,7]
[344143579,1733298648340,-500.0,0.00031189,7]
[344143580,1733298648350,-500.0,0.00031189,7]
[344143581,1733298648361,-500.0,0.00031189,7]
[344143582,1733298648371,-500.0,0.00031189,7]
[344143583,1733298648381,-500.0,0.00031189,7]
[344143584,1733298648392,-500.0,0.00031189,7]
[344143585,1733298648403,-500.0,0.00031189,7]
[344143586,1733298648413,-227.1943,0.00031189,7]
[344143587,1733298648424,-151.0,0.00031189,7]
[344143588,1733298648435,-151.0,0.00031189,7]
[344143589,1733298648446,-151.0,0.00031189,7]
[344143590,1733298648457,-178596.98726516,0.0003119,2]
[344143591,1733298648471,-7397.83101357,0.0003119,2]
[344143592,1733298648484,-7251.58090936,0.0003119,2]
[344143593,1733298648496,-4828.15,0.0003119,2]
[344143605,1733298984235,500.0,0.00027397,2]
[344143622,1733299397614,169.386374,0.0002767,2]
[344143626,1733299400109,7816.9,0.00028,2]
[344143634,1733299479281,11733.17173008,0.0002799,2]
[344143639,1733299538973,250.0,0.00027397,2]
[344143640,1733299550112,-300.0,0.00028175,2]
[344143641,1733299550134,-300.0,0.00028175,2]
[344143642,1733299550154,-335.03366794,0.00028175,2]
[344143644,1733299625112,-300.0,0.00028173,2]
[344143645,1733299625136,-300.0,0.00028173,2]
[344143646,1733299625158,-7639.0,0.00028173,2]
[344143647,1733299625179,-0.0281969,0.00028177,2]
[344143648,1733299629100,-1223.65537207,0.00028177,2]
[344143649,1733299636124,-3038.69682952,0.00028177,2]
[344143690,1733299832155,627.6921036,0.00027759,2]
[344143697,1733299832453,-300.0,0.00028176,2]
[344143698,1733299832464,-300.0,0.00028176,2]
[344143699,1733299832473,-3333.72916667,0.00028177,2]
[344143700,1733299832507,-17303.89043484,0.00028177,2]
[344143701,1733299832517,-307.487117,0.00028581,2]
[344143702,1733299832526,-208.0598341,0.00028656,2]
[344143703,1733299832536,-172.095179,0.0002916,2]
[344143704,1733299832545,-1521.71321941,0.00029214,2]
[344143705,1733299832558,-9336.62278929,0.0002935,2]
[344143707,1733299832568,-314.56573263,0.00029469,2]
[344143708,1733299832578,-9336.62278929,0.00029628,2]
[344143709,1733299832587,-172.453297,0.00029631,2]
[344143710,1733299832596,-9336.62278929,0.00029984,2]
[344143711,1733299832606,-334.0,0.0003,2]
[344143712,1733299832615,-162.0,0.0003,2]
[344143713,1733299832625,-208.0,0.0003,2]
[344143714,1733299832635,-500.0,0.00030132,2]
[344143715,1733299832644,-500.0,0.00030132,2]
[344143716,1733299832654,-500.0,0.00030132,2]
[344143717,1733299832663,-500.0,0.00030132,2]
[344143718,1733299832672,-500.0,0.00030132,2]
[344143719,1733299832682,-500.0,0.00030132,2]
[344143720,1733299832692,-260.19833223,0.00030132,2]
[344143721,1733299832702,-500.0,0.00030132,2]
[344143722,1733299832711,-500.0,0.00030132,2]
[344143723,1733299832721,-320.15338407,0.00030132,2]
[344143724,1733299832730,-500.0,0.00030132,2]
[344143725,1733299832740,-500.0,0.00030132,2]
[344143726,1733299832749,-500.0,0.00030132,2]
[344143727,1733299832758,-500.0,0.00030132,2]
[344143728,1733299832767,-500.0,0.00030132,2]
[344143729,1733299832776,-500.0,0.00030132,2]
[344143730,1733299832786,-500.0,0.00030132,2]
[344143731,1733299832795,-500.0,0.00030132,2]
[344143732,1733299832808,-500.0,0.00030132,2]
[344143733,1733299832818,-500.0,0.00030132,2]
[344143734,1733299832828,-500.0,0.00030132,2]
[344143735,1733299832837,-500.0,0.00030132,2]
[344143736,1733299832847,-500.0,0.00030132,2]
[344143737,1733299832856,-500.0,0.00030132,2]
[344143738,1733299832866,-500.0,0.00030132,2]
[344143739,1733299832876,-500.0,0.00030132,2]
[344143740,1733299832885,-500.0,0.00030132,2]
[344143741,1733299832895,-500.0,0.00030132,2]
[344143742,1733299832904,-500.0,0.00030132,2]
[344143743,1733299832913,-500.0,0.00030132,2]
[344143744,1733299832923,-500.0,0.00030132,2]
[344143745,1733299832932,-500.0,0.00030132,2]
[344143746,1733299832941,-500.0,0.00030132,2]
[344143747,1733299832950,-500.0,0.00030132,2]
[344143748,1733299832960,-500.12221303,0.00030132,2]
[344143749,1733299832969,-500.0,0.00030132,2]
[344143750,1733299832978,-500.0,0.00030132,2]
[344143751,1733299832988,-500.0,0.00030132,2]
[344143752,1733299832997,-500.0,0.00030132,2]
[344143753,1733299833007,-500.0,0.00030136,7]
[344143754,1733299833016,-500.0,0.00030136,7]
[344143755,1733299833025,-500.0,0.00030136,7]
[344143756,1733299833035,-500.0,0.00030136,7]
[344143757,1733299833044,-500.0,0.00030136,7]
[344143758,1733299833057,-500.0,0.00030136,7]
[344143759,1733299833067,-500.0,0.00030136,7]
[344143760,1733299833077,-601.2862897,0.00030136,7]
[344143761,1733299833087,-501.78824559,0.00030136,7]
[344143762,1733299833097,-500.0,0.00030136,7]
[344143763,1733299833107,-385.30754492,0.00030136,7]
[344143764,1733299833117,-500.0,0.00030136,7]
[344143765,1733299833127,-500.0,0.00030136,7]
[344143766,1733299833138,-500.0,0.00030136,7]
[344143767,1733299833148,-500.0,0.00030136,7]
[344143768,1733299833159,-500.0,0.00030136,7]
[344143769,1733299833169,-500.0,0.00030136,7]
[344143770,1733299833179,-500.0,0.00030136,7]
[344143771,1733299833189,-500.0,0.00030136,7]
[344143772,1733299833200,-500.0,0.00030136,7]
[344143773,1733299833211,-500.0,0.00030136,7]
[344143774,1733299833221,-500.0,0.00030136,7]
[344143775,1733299833231,-574.66719681,0.00030136,7]
[344143776,1733299833242,-500.0,0.00030136,7]
[344143777,1733299833253,-500.0,0.00030136,7]
[344143778,1733299833263,-426.32850146,0.00030136,7]
[344143779,1733299833277,-500.0,0.00030136,7]
[344143780,1733299833288,-500.0,0.00030136,7]
[344143781,1733299833301,-500.0,0.00030136,7]
[344143782,1733299833314,-500.0,0.00030136,7]
[344143783,1733299833325,-500.0,0.00030136,7]
[344143784,1733299833336,-527.22,0.00030136,7]
[344143785,1733299833347,-500.0,0.00030136,7]
[344143786,1733299833359,-500.0,0.00030136,7]
[344143787,1733299833370,-514.5333,0.00030136,7]
[344143788,1733299833380,-507.21346338,0.00030136,7]
[344143789,1733299833391,-500.0,0.00030136,7]
[344143790,1733299833402,-500.0,0.00030136,7]
[344143791,1733299833412,-500.0,0.00030136,7]
[344143792,1733299833422,-500.0,0.00030136,7]
[344143793,1733299833435,-500.0,0.00030136,7]
[344143794,1733299833445,-500.0,0.00030136,7]
[344143795,1733299833455,-500.0,0.00030136,7]
[344143796,1733299833465,-500.0,0.00030136,7]
[344143797,1733299833475,-500.0,0.00030136,7]
[344143798,1733299833487,-500.0,0.00030136,7]
[344143799,1733299833498,-500.0,0.00030136,7]
[344143800,1733299833508,-468.91678169,0.00030136,7]
[344143801,1733299833518,-500.0,0.00030136,7]
[344143802,1733299833528,-500.0,0.00030136,7]
[344143803,1733299833538,-500.0,0.00030136,7]
[344143804,1733299833549,-500.0,0.00030136,7]
[344143805,1733299833560,-500.0,0.00030136,7]
[344143806,1733299833570,-500.0,0.00030136,7]
[344143807,1733299833580,-500.0,0.00030136,7]
[344143808,1733299833591,-500.0,0.00030136,7]
[344143809,1733299833601,-503.14415575,0.00030136,7]
[344143810,1733299833611,-500.0,0.00030136,7]
[344143811,1733299833621,-400.97734353,0.00030136,7]